[Event "*** Titled Tuesday Blitz"]
[Site "Chess.com"]
[Date "2021.03.09"]
[Round "8"]
[White "NarminSoyunlu"]
[Black "Chamal_Gedgafov"]
[Result "1/2-1/2"]
[WhiteElo "2058"]
[BlackElo "2236"]
[TimeControl "180+1"]
[EndTime "11:32:35 PST"]
[Termination "Game drawn - insufficient material"]

1. g3 {[%clk 0:03:00.9]} 1... d5 {[%clk 0:02:58.3]} 2. Bg2 {[%clk 0:02:57.8]}
2... c6 {[%clk 0:02:58.4]} 3. c4 {[%clk 0:02:58.3]} 3... Be6 {[%clk 0:02:55]} 4.
cxd5 {[%clk 0:02:55.8]} 4... Bxd5 {[%clk 0:02:54]} 5. e4 {[%clk 0:02:54.2]} 5...
Be6 {[%clk 0:02:53.4]} 6. d4 {[%clk 0:02:54.8]} 6... Nf6 {[%clk 0:02:46]} 7. Nc3
{[%clk 0:02:54.1]} 7... g6 {[%clk 0:02:44.5]} 8. Nge2 {[%clk 0:02:54.1]} 8...
Bg7 {[%clk 0:02:44.2]} 9. O-O {[%clk 0:02:53.5]} 9... O-O {[%clk 0:02:41.2]} 10.
h3 {[%clk 0:02:49.1]} 10... Na6 {[%clk 0:02:34.2]} 11. d5 {[%clk 0:02:41.8]}
11... cxd5 {[%clk 0:02:30.3]} 12. exd5 {[%clk 0:02:42.7]} 12... Bd7 {[%clk
0:02:25.2]} 13. d6 {[%clk 0:02:30.9]} 13... exd6 {[%clk 0:02:10.5]} 14. Bxb7
{[%clk 0:02:19.7]} 14... Rb8 {[%clk 0:02:09.9]} 15. Bxa6 {[%clk 0:02:14.9]}
15... Bxh3 {[%clk 0:02:06.3]} 16. Nf4 {[%clk 0:02:13.5]} 16... Bxf1 {[%clk
0:02:04.1]} 17. Bxf1 {[%clk 0:02:11.6]} 17... Qb6 {[%clk 0:02:01]} 18. Ncd5
{[%clk 0:02:02.7]} 18... Nxd5 {[%clk 0:01:56.1]} 19. Nxd5 {[%clk 0:02:03.6]}
19... Qa5 {[%clk 0:01:45.3]} 20. Ne7+ {[%clk 0:01:53.3]} 20... Kh8 {[%clk
0:01:44.4]} 21. Nc6 {[%clk 0:01:54.2]} 21... Qb6 {[%clk 0:01:34.6]} 22. Nxb8
{[%clk 0:01:53]} 22... Rxb8 {[%clk 0:01:34.3]} 23. Rb1 {[%clk 0:01:36]} 23...
Be5 {[%clk 0:01:23.3]} 24. Qf3 {[%clk 0:01:25.3]} 24... Kg8 {[%clk 0:01:18.9]}
25. Bc4 {[%clk 0:01:08.9]} 25... Qc7 {[%clk 0:01:18.6]} 26. b3 {[%clk
0:01:05.6]} 26... a5 {[%clk 0:01:16.8]} 27. Bb2 {[%clk 0:00:58.7]} 27... a4
{[%clk 0:01:16.7]} 28. Bxe5 {[%clk 0:00:53.9]} 28... dxe5 {[%clk 0:01:17.6]} 29.
Rd1 {[%clk 0:00:54.2]} 29... axb3 {[%clk 0:01:13.3]} 30. Bxb3 {[%clk 0:00:55.1]}
30... Kg7 {[%clk 0:01:13.7]} 31. Qd5 {[%clk 0:00:54.7]} 31... Re8 {[%clk
0:01:04.3]} 32. Qd7 {[%clk 0:00:54.5]} 32... Re7 {[%clk 0:01:01.7]} 33. Qxc7
{[%clk 0:00:54.4]} 33... Rxc7 {[%clk 0:01:02.6]} 34. a4 {[%clk 0:00:54.6]} 34...
f5 {[%clk 0:01:02.5]} 35. a5 {[%clk 0:00:54.4]} 35... Rc3 {[%clk 0:00:57.2]} 36.
Rd7+ {[%clk 0:00:48.7]} 36... Kf6 {[%clk 0:00:56.4]} 37. Rb7 {[%clk 0:00:49.6]}
37... Rc1+ {[%clk 0:00:55.4]} 38. Kg2 {[%clk 0:00:49.3]} 38... Ra1 {[%clk
0:00:56.3]} 39. Rb6+ {[%clk 0:00:49.5]} 39... Kg5 {[%clk 0:00:55.8]} 40. a6
{[%clk 0:00:50.4]} 40... e4 {[%clk 0:00:52.3]} 41. Bc4 {[%clk 0:00:50.7]} 41...
Ra4 {[%clk 0:00:48.3]} 42. Bb5 {[%clk 0:00:49.7]} 42... Ra2 {[%clk 0:00:47.7]}
43. Kf1 {[%clk 0:00:45.4]} 43... Kg4 {[%clk 0:00:46.4]} 44. Be2+ {[%clk
0:00:41.2]} 44... Kg5 {[%clk 0:00:44.9]} 45. Rb7 {[%clk 0:00:39.4]} 45... h6
{[%clk 0:00:42.9]} 46. a7 {[%clk 0:00:39.1]} 46... h5 {[%clk 0:00:35.7]} 47. Bc4
{[%clk 0:00:38.7]} 47... Ra4 {[%clk 0:00:33.6]} 48. Bb3 {[%clk 0:00:37.8]} 48...
Ra3 {[%clk 0:00:33.1]} 49. Bd5 {[%clk 0:00:37.9]} 49... h4 {[%clk 0:00:31.6]}
50. gxh4+ {[%clk 0:00:36.9]} 50... Kg4 {[%clk 0:00:31.9]} 51. Rg7 {[%clk
0:00:36.4]} 51... Kf3 {[%clk 0:00:31.8]} 52. Ke1 {[%clk 0:00:32.3]} 52... Ra1+
{[%clk 0:00:30.8]} 53. Kd2 {[%clk 0:00:32.6]} 53... Kxf2 {[%clk 0:00:31.2]} 54.
a8=Q {[%clk 0:00:25.6]} 54... e3+ {[%clk 0:00:30.9]} 55. Kc2 {[%clk 0:00:21.5]}
55... Rxa8 {[%clk 0:00:27.9]} 56. Bxa8 {[%clk 0:00:22.4]} 56... e2 {[%clk
0:00:28.4]} 57. Re7 {[%clk 0:00:21.4]} 57... e1=Q {[%clk 0:00:28.2]} 58. Rxe1
{[%clk 0:00:21.2]} 58... Kxe1 {[%clk 0:00:29.1]} 59. Kd3 {[%clk 0:00:20.4]}
59... Kf2 {[%clk 0:00:29]} 60. Kd4 {[%clk 0:00:16.5]} 60... Kg3 {[%clk
0:00:28.6]} 61. Ke5 {[%clk 0:00:16.5]} 61... Kxh4 {[%clk 0:00:27.4]} 62. Kf4
{[%clk 0:00:16.3]} 62... g5+ {[%clk 0:00:24.8]} 63. Kxf5 {[%clk 0:00:16]} 63...
g4 {[%clk 0:00:24.6]} 64. Kf4 {[%clk 0:00:16.4]} 64... g3 {[%clk 0:00:24.4]} 65.
Bg2 {[%clk 0:00:15.6]} 65... Kh5 {[%clk 0:00:24.1]} 66. Kxg3 {[%clk 0:00:16.5]}
1/2-1/2

[Event "*** Titled Tuesday Blitz"]
[Site "Chess.com"]
[Date "2021.03.09"]
[Round "8"]
[White "J36225"]
[Black "ChampStan"]
[Result "1-0"]
[WhiteElo "2490"]
[BlackElo "2040"]
[TimeControl "180+1"]
[EndTime "11:32:36 PST"]
[Termination "J36225 won on time"]

1. e4 {[%clk 0:03:00.9]} 1... e5 {[%clk 0:02:59.3]} 2. Nf3 {[%clk 0:02:51.5]}
2... Nc6 {[%clk 0:02:58.8]} 3. Bb5 {[%clk 0:02:51]} 3... a6 {[%clk 0:02:59.1]}
4. Ba4 {[%clk 0:02:50.9]} 4... Nf6 {[%clk 0:02:58.5]} 5. O-O {[%clk 0:02:50.8]}
5... b5 {[%clk 0:02:57.7]} 6. Bb3 {[%clk 0:02:50.2]} 6... Bb7 {[%clk 0:02:58.3]}
7. d3 {[%clk 0:02:48.5]} 7... Bc5 {[%clk 0:02:56.9]} 8. Nc3 {[%clk 0:02:48]}
8... d6 {[%clk 0:02:52.9]} 9. a3 {[%clk 0:02:41.7]} 9... Ba7 {[%clk 0:02:32.5]}
10. h3 {[%clk 0:02:40]} 10... h6 {[%clk 0:02:30.2]} 11. Be3 {[%clk 0:02:29.3]}
11... O-O {[%clk 0:02:29]} 12. Nd5 {[%clk 0:02:27]} 12... Nxd5 {[%clk
0:02:25.3]} 13. Bxd5 {[%clk 0:02:24.2]} 13... Qc8 {[%clk 0:02:24]} 14. Qd2
{[%clk 0:02:21.1]} 14... Bxe3 {[%clk 0:02:19.3]} 15. fxe3 {[%clk 0:02:15.8]}
15... Ne7 {[%clk 0:02:19.5]} 16. Bxb7 {[%clk 0:02:14.4]} 16... Qxb7 {[%clk
0:02:19.2]} 17. Nh4 {[%clk 0:02:13.6]} 17... d5 {[%clk 0:02:17.6]} 18. exd5
{[%clk 0:02:12.2]} 18... Qxd5 {[%clk 0:02:17.5]} 19. Qf2 {[%clk 0:02:11.3]}
19... Rad8 {[%clk 0:02:11.3]} 20. e4 {[%clk 0:02:10.4]} 20... Qd4 {[%clk
0:02:06.8]} 21. Qxd4 {[%clk 0:02:09.9]} 21... Rxd4 {[%clk 0:02:07.4]} 22. Nf3
{[%clk 0:02:08.8]} 22... Nc6 {[%clk 0:02:02.3]} 23. Nxd4 {[%clk 0:02:07.5]}
23... Nxd4 {[%clk 0:02:02.3]} 24. Rf2 {[%clk 0:02:05.6]} 24... Rd8 {[%clk
0:02:00.5]} 25. Rd1 {[%clk 0:01:55.6]} 25... c5 {[%clk 0:01:59]} 26. b4 {[%clk
0:01:40.7]} 26... cxb4 {[%clk 0:01:49.3]} 27. axb4 {[%clk 0:01:41.6]} 27... Rc8
{[%clk 0:01:49.9]} 28. Ra1 {[%clk 0:01:32.7]} 28... Rc6 {[%clk 0:01:48.9]} 29.
Ra2 {[%clk 0:01:23.4]} 29... f6 {[%clk 0:01:48.6]} 30. Kh2 {[%clk 0:01:15.5]}
30... Kf7 {[%clk 0:01:47.8]} 31. Rf1 {[%clk 0:01:14.7]} 31... Kg6 {[%clk
0:01:25.2]} 32. Rc1 {[%clk 0:01:06.5]} 32... Nb3 {[%clk 0:01:09]} 33. Rb1 {[%clk
0:00:53.9]} 33... Nd4 {[%clk 0:01:08.1]} 34. Rba1 {[%clk 0:00:54]} 34... Rxc2
{[%clk 0:01:06.9]} 35. Rxc2 {[%clk 0:00:53.5]} 35... Nxc2 {[%clk 0:01:06.8]} 36.
Rxa6 {[%clk 0:00:49.3]} 36... Nxb4 {[%clk 0:01:05.8]} 37. Ra3 {[%clk 0:00:49.1]}
37... Nc2 {[%clk 0:00:57.5]} 38. Rb3 {[%clk 0:00:46.1]} 38... Nd4 {[%clk
0:00:57.2]} 39. Rc3 {[%clk 0:00:40.7]} 39... b4 {[%clk 0:00:40]} 40. Rc4 {[%clk
0:00:33.4]} 40... b3 {[%clk 0:00:37.2]} 41. Rb4 {[%clk 0:00:33.2]} 41... Kg5
{[%clk 0:00:24.9]} 42. Kg3 {[%clk 0:00:28.3]} 42... Ne2+ {[%clk 0:00:19.9]} 43.
Kf2 {[%clk 0:00:25.4]} 43... Nd4 {[%clk 0:00:20.8]} 44. g3 {[%clk 0:00:21.7]}
44... g6 {[%clk 0:00:19]} 45. Rb7 {[%clk 0:00:20.5]} 45... f5 {[%clk 0:00:18.5]}
46. Rb6 {[%clk 0:00:15.3]} 46... Kh5 {[%clk 0:00:05]} 47. exf5 {[%clk
0:00:08.6]} 47... gxf5 {[%clk 0:00:04.6]} 48. Rd6 {[%clk 0:00:07.9]} 48... Kg5
{[%clk 0:00:02.4]} 49. Rd7 {[%clk 0:00:06.2]} 49... Kh5 {[%clk 0:00:01.4]} 50.
Rb7 {[%clk 0:00:06.1]} 50... Kg5 {[%clk 0:00:01.2]} 51. Ke3 {[%clk 0:00:05.9]}
1-0

[Event "*** Titled Tuesday Blitz"]
[Site "Chess.com"]
[Date "2021.03.09"]
[Round "8"]
[White "VladimirBugayev"]
[Black "pfalcon1949"]
[Result "0-1"]
[WhiteElo "2253"]
[BlackElo "2069"]
[TimeControl "180+1"]
[EndTime "11:32:37 PST"]
[Termination "pfalcon1949 won on time"]

1. e4 {[%clk 0:03:00.9]} 1... c5 {[%clk 0:02:59.7]} 2. Nc3 {[%clk 0:03:00.1]}
2... Nc6 {[%clk 0:02:56.6]} 3. Bb5 {[%clk 0:02:59.5]} 3... g6 {[%clk 0:02:54.4]}
4. Bxc6 {[%clk 0:02:58]} 4... dxc6 {[%clk 0:02:54.2]} 5. f4 {[%clk 0:02:52.3]}
5... Qc7 {[%clk 0:02:53.8]} 6. d3 {[%clk 0:02:51.8]} 6... Bg7 {[%clk 0:02:52.8]}
7. Nf3 {[%clk 0:02:51]} 7... Bg4 {[%clk 0:02:49.4]} 8. O-O {[%clk 0:02:50.7]}
8... e6 {[%clk 0:02:48.9]} 9. Be3 {[%clk 0:02:49.6]} 9... b6 {[%clk 0:02:47.9]}
10. h3 {[%clk 0:02:49.3]} 10... Bxf3 {[%clk 0:02:44.9]} 11. Qxf3 {[%clk
0:02:49.8]} 11... Ne7 {[%clk 0:02:45.1]} 12. Rae1 {[%clk 0:02:41.6]} 12... O-O
{[%clk 0:02:43.7]} 13. Nd1 {[%clk 0:02:23.5]} 13... f5 {[%clk 0:02:39.8]} 14. b3
{[%clk 0:02:21.8]} 14... Rad8 {[%clk 0:02:39.1]} 15. Nf2 {[%clk 0:02:18]} 15...
Bd4 {[%clk 0:02:32.5]} 16. g3 {[%clk 0:01:56.5]} 16... Rd7 {[%clk 0:02:25.6]}
17. Kg2 {[%clk 0:01:54.8]} 17... Rfd8 {[%clk 0:02:25.5]} 18. c3 {[%clk
0:01:29.2]} 18... Bxe3 {[%clk 0:02:21]} 19. Rxe3 {[%clk 0:01:27.5]} 19... b5
{[%clk 0:02:17.9]} 20. c4 {[%clk 0:01:20.7]} 20... b4 {[%clk 0:02:12.5]} 21.
Rfe1 {[%clk 0:01:20.1]} 21... a5 {[%clk 0:02:08.5]} 22. g4 {[%clk 0:01:18]}
22... Rf8 {[%clk 0:01:56.5]} 23. exf5 {[%clk 0:01:07.7]} 23... exf5 {[%clk
0:01:46.8]} 24. Qe2 {[%clk 0:01:06.3]} 24... Rf7 {[%clk 0:01:31.3]} 25. Re5
{[%clk 0:01:00.9]} 25... Kg7 {[%clk 0:01:22]} 26. Qe3 {[%clk 0:00:55.5]} 26...
fxg4 {[%clk 0:01:15]} 27. hxg4 {[%clk 0:00:53.3]} 27... Qd6 {[%clk 0:00:58.4]}
28. Re2 {[%clk 0:00:22.9]} 28... Qd4 {[%clk 0:00:42.2]} 29. Qxd4 {[%clk
0:00:16.6]} 29... cxd4 {[%clk 0:00:41.2]} 30. Kg3 {[%clk 0:00:15.9]} 30... g5
{[%clk 0:00:36.8]} 31. f5 {[%clk 0:00:14.8]} 31... Nc8 {[%clk 0:00:33.7]} 32.
Rxa5 {[%clk 0:00:14.1]} 32... Nd6 {[%clk 0:00:30.3]} 33. Ne4 {[%clk 0:00:13]}
33... Nxe4+ {[%clk 0:00:30]} 34. Rxe4 {[%clk 0:00:13.2]} 34... Rfe7 {[%clk
0:00:30.3]} 35. Rae5 {[%clk 0:00:13.1]} 35... Rf7 {[%clk 0:00:26.9]} 36. Re6
{[%clk 0:00:11.1]} 36... c5 {[%clk 0:00:23.2]} 37. Rc6 {[%clk 0:00:11]} 37...
Ra7 {[%clk 0:00:22.7]} 38. Rxc5 {[%clk 0:00:10]} 38... Rxa2 {[%clk 0:00:23.3]}
39. Rxd4 {[%clk 0:00:09.3]} 39... Rb2 {[%clk 0:00:23.4]} 40. Rb5 {[%clk
0:00:09.2]} 40... Rxb3 {[%clk 0:00:23.5]} 41. c5 {[%clk 0:00:09.6]} 41... Rc7
{[%clk 0:00:21]} 42. Rbxb4 {[%clk 0:00:08.3]} 42... Rxb4 {[%clk 0:00:18.4]} 43.
Rxb4 {[%clk 0:00:07.7]} 43... Rxc5 {[%clk 0:00:19.1]} 44. Rb7+ {[%clk
0:00:06.9]} 44... Kf6 {[%clk 0:00:17.5]} 45. Rxh7 {[%clk 0:00:05.5]} 45... Rc3
{[%clk 0:00:18.2]} 46. Rh6+ {[%clk 0:00:05.8]} 46... Kg7 {[%clk 0:00:18.1]} 47.
Rd6 {[%clk 0:00:05.9]} 47... Kf7 {[%clk 0:00:16.8]} 48. Kf3 {[%clk 0:00:06.1]}
48... Rc1 {[%clk 0:00:16.8]} 49. Rg6 {[%clk 0:00:04]} 49... Rf1+ {[%clk
0:00:17.2]} 50. Ke2 {[%clk 0:00:03]} 50... Rg1 {[%clk 0:00:17.5]} 51. Rxg5
{[%clk 0:00:03.3]} 51... Rg2+ {[%clk 0:00:17.2]} 52. Kf3 {[%clk 0:00:02.3]}
52... Rc2 {[%clk 0:00:14.8]} 53. Ke3 {[%clk 0:00:02.5]} 53... Rc1 {[%clk
0:00:14.8]} 54. Rg6 {[%clk 0:00:03.4]} 54... Rd1 {[%clk 0:00:12]} 55. Kd4 {[%clk
0:00:04.3]} 55... Rd2 {[%clk 0:00:10.5]} 56. Ke4 {[%clk 0:00:04.4]} 56... Re2+
{[%clk 0:00:10.5]} 57. Kd5 {[%clk 0:00:04.7]} 57... Re3 {[%clk 0:00:09.7]} 58.
d4 {[%clk 0:00:05.6]} 58... Rd3 {[%clk 0:00:09.7]} 59. Ke5 {[%clk 0:00:05.4]}
59... Rd1 {[%clk 0:00:10.6]} 60. d5 {[%clk 0:00:05.2]} 60... Rd2 {[%clk
0:00:10.4]} 61. Kd6 {[%clk 0:00:05.3]} 61... Rd4 {[%clk 0:00:07.8]} 62. Kc5
{[%clk 0:00:02.3]} 62... Rd1 {[%clk 0:00:08.7]} 63. d6 {[%clk 0:00:02.5]} 63...
Ke8 {[%clk 0:00:08.4]} 64. Re6+ {[%clk 0:00:01.2]} 64... Kd7 {[%clk 0:00:08.1]}
65. Re7+ {[%clk 0:00:01]} 65... Kd8 {[%clk 0:00:09]} 66. Ra7 {[%clk 0:00:01.3]}
66... Rc1+ {[%clk 0:00:09.4]} 0-1

[Event "*** Titled Tuesday Blitz"]
[Site "Chess.com"]
[Date "2021.03.09"]
[Round "8"]
[White "Mihnea2017"]
[Black "FlySooHigh"]
[Result "1-0"]
[WhiteElo "2505"]
[BlackElo "2660"]
[TimeControl "180+1"]
[EndTime "11:32:38 PST"]
[Termination "Mihnea2017 won by resignation"]

1. e4 {[%clk 0:03:00.9]} 1... c5 {[%clk 0:02:59.1]} 2. Nf3 {[%clk 0:03:00.7]}
2... d6 {[%clk 0:02:59.4]} 3. d4 {[%clk 0:03:00.8]} 3... cxd4 {[%clk 0:03:00.3]}
4. Nxd4 {[%clk 0:03:01]} 4... Nf6 {[%clk 0:03:01]} 5. Nc3 {[%clk 0:03:01.6]}
5... g6 {[%clk 0:03:01.3]} 6. Be3 {[%clk 0:02:59.4]} 6... Bg7 {[%clk 0:03:01.4]}
7. f3 {[%clk 0:02:59.8]} 7... O-O {[%clk 0:03:01.7]} 8. Qd2 {[%clk 0:02:59.9]}
8... Nc6 {[%clk 0:03:02.2]} 9. O-O-O {[%clk 0:02:59.1]} 9... d5 {[%clk 0:03:02]}
10. Kb1 {[%clk 0:02:59.3]} 10... Nxd4 {[%clk 0:02:57.1]} 11. e5 {[%clk
0:02:59.6]} 11... Nf5 {[%clk 0:02:57.5]} 12. exf6 {[%clk 0:02:58.9]} 12... Bxf6
{[%clk 0:02:58.4]} 13. Nxd5 {[%clk 0:02:55.8]} 13... Qxd5 {[%clk 0:02:58.5]} 14.
Qxd5 {[%clk 0:02:54]} 14... Nxe3 {[%clk 0:02:59.1]} 15. Qd2 {[%clk 0:02:53.2]}
15... Nxd1 {[%clk 0:02:59.4]} 16. Qxd1 {[%clk 0:02:53.6]} 16... Be6 {[%clk
0:02:59.9]} 17. Bb5 {[%clk 0:02:37.1]} 17... Rfd8 {[%clk 0:02:59.5]} 18. Qe2
{[%clk 0:02:35.7]} 18... Rd6 {[%clk 0:02:57.1]} 19. Ba4 {[%clk 0:02:34.6]} 19...
Rad8 {[%clk 0:02:54.6]} 20. Bb3 {[%clk 0:02:33]} 20... Bxb3 {[%clk 0:02:53.2]}
21. axb3 {[%clk 0:02:32.9]} 21... Rd2 {[%clk 0:02:53.2]} 22. Qe4 {[%clk
0:02:27.4]} 22... b6 {[%clk 0:02:44.6]} 23. g3 {[%clk 0:02:24.8]} 23... Rf2
{[%clk 0:02:30.3]} 24. h4 {[%clk 0:02:15.9]} 24... h6 {[%clk 0:01:55.1]} 25. h5
{[%clk 0:02:08.9]} 25... g5 {[%clk 0:01:54]} 26. f4 {[%clk 0:02:08.3]} 26...
Rdd2 {[%clk 0:01:41.1]} 27. Rc1 {[%clk 0:01:39.4]} 27... Kg7 {[%clk 0:01:40.2]}
28. Qb7 {[%clk 0:01:36]} 28... Rg2 {[%clk 0:01:17.7]} 29. Qxa7 {[%clk
0:01:33.6]} 29... Rxg3 {[%clk 0:01:10.9]} 30. fxg5 {[%clk 0:01:32.3]} 30... Bxg5
{[%clk 0:00:50.2]} 31. Qxb6 {[%clk 0:01:20]} 31... Rd6 {[%clk 0:00:37.8]} 32.
Qf2 {[%clk 0:01:19.7]} 32... Rh3 {[%clk 0:00:38.1]} 33. Rf1 {[%clk 0:01:12.7]}
33... Rf6 {[%clk 0:00:21.7]} 34. Qd4 {[%clk 0:01:11.7]} 34... Rxh5 {[%clk
0:00:20.3]} 35. Rxf6 {[%clk 0:01:04]} 35... Bxf6 {[%clk 0:00:21.2]} 36. Qe4
{[%clk 0:01:04.3]} 36... Re5 {[%clk 0:00:20.8]} 37. Qf4 {[%clk 0:00:59.6]} 37...
h5 {[%clk 0:00:19.9]} 38. b4 {[%clk 0:00:59.5]} 38... h4 {[%clk 0:00:20]} 39.
Ka2 {[%clk 0:00:55.7]} 39... Rh5 {[%clk 0:00:19.2]} 40. Qg4+ {[%clk 0:00:54.4]}
40... Kh6 {[%clk 0:00:19.3]} 41. Qh3 {[%clk 0:00:45.6]} 41... Kh7 {[%clk
0:00:16.8]} 42. Kb3 {[%clk 0:00:43.3]} 42... Rh6 {[%clk 0:00:16.3]} 43. b5
{[%clk 0:00:40.5]} 43... Rg6 {[%clk 0:00:16.8]} 44. Qf5 {[%clk 0:00:38.5]} 44...
Kg7 {[%clk 0:00:17.4]} 45. b6 {[%clk 0:00:36.4]} 45... Bxb2 {[%clk 0:00:14.1]}
46. Kxb2 {[%clk 0:00:22.1]} 46... Rxb6+ {[%clk 0:00:14.7]} 47. Kc3 {[%clk
0:00:22.5]} 47... Rh6 {[%clk 0:00:15]} 48. Qh3 {[%clk 0:00:21.7]} 48... f5
{[%clk 0:00:15]} 49. Qxf5 {[%clk 0:00:20.5]} 49... h3 {[%clk 0:00:14.9]} 50.
Qe5+ {[%clk 0:00:20.8]} 50... Kf7 {[%clk 0:00:15.1]} 51. Qh2 {[%clk 0:00:20.5]}
51... e5 {[%clk 0:00:15.1]} 52. Qxe5 {[%clk 0:00:19.4]} 52... h2 {[%clk
0:00:14.7]} 53. Qd5+ {[%clk 0:00:19.8]} 53... Kg7 {[%clk 0:00:14.6]} 54. Qh1
{[%clk 0:00:19.8]} 54... Rh3+ {[%clk 0:00:14]} 55. Kb4 {[%clk 0:00:19.7]} 55...
Rh4+ {[%clk 0:00:12]} 56. c4 {[%clk 0:00:19.7]} 56... Kf6 {[%clk 0:00:11]} 57.
Kb5 {[%clk 0:00:19.6]} 57... Ke7 {[%clk 0:00:10.3]} 58. c5 {[%clk 0:00:19.9]}
58... Kd8 {[%clk 0:00:10.3]} 59. Qd5+ {[%clk 0:00:18.2]} 59... Kc7 {[%clk
0:00:08.6]} 60. Qe5+ {[%clk 0:00:12.1]} 60... Kc8 {[%clk 0:00:08]} 61. Qf5+
{[%clk 0:00:11.5]} 61... Kb7 {[%clk 0:00:07.8]} 62. Qd7+ {[%clk 0:00:11.2]}
62... Ka8 {[%clk 0:00:08]} 63. Qd8+ {[%clk 0:00:11.6]} 63... Ka7 {[%clk
0:00:07.3]} 64. Qxh4 {[%clk 0:00:12.5]} 1-0

[Event "*** Titled Tuesday Blitz"]
[Site "Chess.com"]
[Date "2021.03.09"]
[Round "8"]
[White "SerGo055"]
[Black "jens1102"]
[Result "1-0"]
[WhiteElo "2599"]
[BlackElo "2439"]
[TimeControl "180+1"]
[EndTime "11:32:39 PST"]
[Termination "SerGo055 won by checkmate"]

1. d4 {[%clk 0:03:00.9]} 1... Nf6 {[%clk 0:02:53.9]} 2. Nf3 {[%clk 0:02:57.1]}
2... e6 {[%clk 0:02:54.4]} 3. c4 {[%clk 0:02:55.3]} 3... b6 {[%clk 0:02:54.9]}
4. Nc3 {[%clk 0:02:54.6]} 4... Bb7 {[%clk 0:02:55.2]} 5. Bg5 {[%clk 0:02:52.6]}
5... Be7 {[%clk 0:02:55.4]} 6. e3 {[%clk 0:02:49.8]} 6... O-O {[%clk 0:02:55.4]}
7. Bd3 {[%clk 0:02:49.1]} 7... c5 {[%clk 0:02:55.4]} 8. O-O {[%clk 0:02:48.2]}
8... d5 {[%clk 0:02:54.9]} 9. dxc5 {[%clk 0:02:42.3]} 9... bxc5 {[%clk
0:02:53.8]} 10. cxd5 {[%clk 0:02:42.4]} 10... exd5 {[%clk 0:02:49.5]} 11. Rc1
{[%clk 0:02:37.7]} 11... Nbd7 {[%clk 0:02:47.3]} 12. Bf5 {[%clk 0:02:15.7]}
12... h6 {[%clk 0:02:37.2]} 13. Bh4 {[%clk 0:02:11.6]} 13... Re8 {[%clk
0:02:27.4]} 14. Qa4 {[%clk 0:01:54.1]} 14... Nb6 {[%clk 0:02:20.5]} 15. Qa5
{[%clk 0:01:42.2]} 15... Nc4 {[%clk 0:02:12.8]} 16. Qxd8 {[%clk 0:01:41.2]}
16... Raxd8 {[%clk 0:02:11.9]} 17. b3 {[%clk 0:01:40.2]} 17... Nd6 {[%clk
0:02:08.5]} 18. Bd3 {[%clk 0:01:34.5]} 18... Nde4 {[%clk 0:02:02.9]} 19. Bb5
{[%clk 0:01:16]} 19... Rf8 {[%clk 0:01:59]} 20. Nxe4 {[%clk 0:01:09]} 20... dxe4
{[%clk 0:01:56.7]} 21. Ne5 {[%clk 0:01:08.7]} 21... Rd2 {[%clk 0:01:53.4]} 22.
a4 {[%clk 0:00:59.5]} 22... Rfd8 {[%clk 0:01:42.8]} 23. Bc6 {[%clk 0:00:45.5]}
23... Ba6 {[%clk 0:01:30.1]} 24. Rfe1 {[%clk 0:00:45.2]} 24... Rb2 {[%clk
0:01:16.2]} 25. Bxe4 {[%clk 0:00:20.6]} 25... Nxe4 {[%clk 0:00:59.2]} 26. Bxe7
{[%clk 0:00:19.9]} 26... Re8 {[%clk 0:00:55.7]} 27. Nc6 {[%clk 0:00:07.9]} 27...
Bb7 {[%clk 0:00:29]} 28. Bxc5 {[%clk 0:00:07.2]} 28... Bxc6 {[%clk 0:00:18.1]}
29. Bd4 {[%clk 0:00:06.6]} 29... Rxf2 {[%clk 0:00:17.6]} 30. Rxc6 {[%clk
0:00:06.1]} 30... Rd2 {[%clk 0:00:17.7]} 31. Bxa7 {[%clk 0:00:03.8]} 31... Nf6
{[%clk 0:00:15.1]} 32. Bd4 {[%clk 0:00:03.6]} 32... Ng4 {[%clk 0:00:14.2]} 33.
Rf1 {[%clk 0:00:02.5]} 33... Rb8 {[%clk 0:00:13.2]} 34. h3 {[%clk 0:00:02.4]}
34... Nf6 {[%clk 0:00:09.8]} 35. Bxf6 {[%clk 0:00:02.6]} 35... gxf6 {[%clk
0:00:10.3]} 36. Rcxf6 {[%clk 0:00:02.8]} 36... Rxb3 {[%clk 0:00:10.4]} 37. Rxf7
{[%clk 0:00:03.1]} 37... Rxe3 {[%clk 0:00:10.7]} 38. Rf8+ {[%clk 0:00:03.4]}
38... Kg7 {[%clk 0:00:11.1]} 39. R8f7+ {[%clk 0:00:03.7]} 39... Kg8 {[%clk
0:00:10.2]} 40. R7f3 {[%clk 0:00:04.1]} 40... Ree2 {[%clk 0:00:10.2]} 41. Rg3+
{[%clk 0:00:04.2]} 41... Kh7 {[%clk 0:00:10]} 42. Rf7+ {[%clk 0:00:04.6]} 42...
Kh8 {[%clk 0:00:10.6]} 43. Rf6 {[%clk 0:00:05.2]} 43... Kh7 {[%clk 0:00:10.9]}
44. Kh2 {[%clk 0:00:05.5]} 44... Ra2 {[%clk 0:00:09.2]} 45. Ra6 {[%clk 0:00:05]}
45... Re4 {[%clk 0:00:08.4]} 46. Ra7+ {[%clk 0:00:05.1]} 46... Kh8 {[%clk
0:00:08.7]} 47. a5 {[%clk 0:00:06]} 47... Re5 {[%clk 0:00:08.8]} 48. Rg6 {[%clk
0:00:06.2]} 48... h5 {[%clk 0:00:05.6]} 49. a6 {[%clk 0:00:05.3]} 49... Rb5
{[%clk 0:00:04.7]} 50. Rb7 {[%clk 0:00:04.8]} 50... Rba5 {[%clk 0:00:04.5]} 51.
Rc6 {[%clk 0:00:02.8]} 51... Rg5 {[%clk 0:00:03]} 52. Rc8+ {[%clk 0:00:02.9]}
52... Rg8 {[%clk 0:00:03.2]} 53. Rxg8+ {[%clk 0:00:03.3]} 53... Kxg8 {[%clk
0:00:04.1]} 54. a7 {[%clk 0:00:04.1]} 54... Ra3 {[%clk 0:00:04.4]} 55. Rb8+
{[%clk 0:00:04.4]} 55... Kg7 {[%clk 0:00:04.9]} 56. a8=Q {[%clk 0:00:05.3]}
56... Rxa8 {[%clk 0:00:05.3]} 57. Rxa8 {[%clk 0:00:06.1]} 57... h4 {[%clk
0:00:06.2]} 58. Ra5 {[%clk 0:00:06.7]} 58... Kg6 {[%clk 0:00:06.9]} 59. Ra4
{[%clk 0:00:07.3]} 59... Kh6 {[%clk 0:00:07.5]} 60. Rg4 {[%clk 0:00:08.2]} 60...
Kh5 {[%clk 0:00:07.8]} 61. Kg1 {[%clk 0:00:09.1]} 61... Kh6 {[%clk 0:00:08.4]}
62. Kf2 {[%clk 0:00:10]} 62... Kh5 {[%clk 0:00:09.3]} 63. Kf3 {[%clk 0:00:10.9]}
63... Kh6 {[%clk 0:00:10.2]} 64. Kf4 {[%clk 0:00:11.7]} 64... Kh5 {[%clk
0:00:11.1]} 65. Kf5 {[%clk 0:00:12.4]} 65... Kh6 {[%clk 0:00:12]} 66. Kf6 {[%clk
0:00:13.2]} 66... Kh7 {[%clk 0:00:12.9]} 67. Kf7 {[%clk 0:00:12.9]} 67... Kh8
{[%clk 0:00:13.8]} 68. Rxh4# {[%clk 0:00:13]} 1-0